Workbook

Sheet Sheet1
A1: 办公用品采购项目清单
A2: 序号 | B2: 产品名称 | C2: 品牌 | D2: 型号 | E2: 规格 | F2: 单位 | G2: 基准价 | H2: 年使用量 | I2: 报价
A3: 1 | B3: 自封袋 | C3: 红苹果 | D3: 8# | E3: 长170*宽250mm,双层袋壁总厚 度在10-19丝 | F3: 50个/包 | G3: 3.5 | H3: =150+15+130+20+80+300 -> 695
D4: 9# | E4: 长200*宽280mm,双层袋壁总厚 度在10-19丝 | F4: 50个/包 | G4: 5 | H4: =30+10+200+5+20 -> 265
D5: 10# | E5: 长240*宽340mm,双层袋壁总厚 度在10-19丝 | F5: 50个/包 | G5: 6 | H5: =200+50+15+50+20+300+5+50+15+250 -> 955
D6: 12# | E6: 长340*宽450mm.双层袋壁总厚 度在10-19丝 | F6: 50个/包 | G6: 8 | H6: =50+5 -> 55
A7: 2 | B7: 订书机 | C7: 得力 | E7: 3140 | F7: 个 | G7: 16 | H7: =8+8+5+5+2 -> 28
A8: 3 | B8: 订书针 | D8: 0013 23/13 | E8: 脚高为13mm | F8: 1000个/盒 | G8: 1.35 | H8: =12+10+10+2+30+10 -> 74
D9: 0015 23/10 | E9: 脚高为10mm | F9: 1000个/盒 | G9: 1.2 | H9: =5+10 -> 15
D10: 0012 12/6 | E10: 脚高为5.85-6.00mm | F10: 500个/盒 | G10: 1 | H10: =10+24+24+20+20+5+20+10+20 -> 153
A11: 4 | B11: 起钉器 | D11: 52×35×20mm | F11: 个 | G11: 3 | H11: =5+5 -> 10
A12: 5 | B12: 打印纸 | C12: 得力塞纳河 | D12: A4纸 | E12: 长210mm×宽297mm*高0.104mm | F12: 8包/箱 | G12: 150 | H12: =15+23+20+20+12+20+5+8+5+6+50 -> 184
C13: 蓝韵 | D13: 三联打印纸 241-3c-2 | E13: 长241mm x宽140mm*厚64- 90g/m²之间 | F13: 盒 | G13: 43.5 | H13: =10+12+6+10+5+8+1+12+40+6 -> 110
C14: 得力 | D14: A5凭证打印纸 | E14: 宽14.8cm*长21cm*厚0.1mm | F14: 500张/包 | G14: 10.5 | H14: 6
C15: 蓝韵 | D15: 五联打印纸 241-5C-2 | E15: 241mm×140mm | F15: 盒 | G15: 50 | H15: =12+20 -> 32
D16: 两联打印纸 小号 | E16: 长241mm x宽140mm*厚64- 90g/m²之间 | F16: 盒 | G16: 45 | H16: 24.0
C17: 铭洋 | D17: A4红色纸 | E17: 长210mm×宽297mm*高0.104mm | F17: 100张/包 | G17: 8 | H17: =12+10+1+5 -> 28
D18: A4粉色纸 | E18: 长210mm×宽297mm*高0.104mm | F18: 100张/包 | G18: 8 | H18: 20
D19: A4黄色纸 | E19: 长210mm×宽297mm*高0.104mm | F19: 100张/包 | G19: 8 | H19: =10 -> 10
D20: A4绿色纸 | E20: 长210mm×宽297mm*高0.104mm | F20: 100张/包 | G20: 8 | H20: =20 -> 20
A21: 6 | B21: 笔 | C21: 爱好 | D21: 记号笔 12ml | E21: MG-2130双头油性笔 | F21: 支 | G21: 1 | H21: =144+10+6+130+40+50+10+300 -> 690
D22: 中性笔 0.5mm | E22: 0.5mm | F22: 12支/盒 | G22: 7 | H22: =24+10+40+20+200+100+15+15+10+10 -> 444
D23: 白板笔 12支/盒 74500 | E23: 12支/盒11.5*1.17 cm | F23: 支 | G23: 1 | H23: =48+12+10+40+20+60+60+2+60 -> 312
D24: 油笔 12支/盒 | E24: 长18cm | F24: 支 | G24: 0.6 | H24: =24+10+80+50 -> 164
D25: 铅笔 10支/把 | E25: 2B | F25: 支 | G25: 0.5 | H25: =5+20+10+10 -> 45
A26: 7 | B26: 长尾夹 | C26: 广博 | D26: 大号 | E26: 50mm | F26: 12个/盒 | G26: 12 | H26: =6+2+5+6+5+5+1+5+3+15 -> 53
D27: 中号 | E27: 25mm | F27: 34个/盒 | G27: 9 | H27: =6+5+5+6+5+3+1+5+3+15 -> 54
D28: 小号 | E28: 19mm | F28: 48个/盒 | G28: 9.5 | H28: =6+2+5+6+5+1+5+3+15 -> 48
A29: 8 | B29: 透明胶带 | E29: 7.5cm*长100m*厚35μm至47μm | F29: 卷 | G29: 9.5 | H29: =12+50+12+100 -> 174
E30: 4.5cm*长100m*厚35μm至47μm | F30: 卷 | G30: 6 | H30: =50 -> 50
E31: 5.5cm*长100m*厚35μm至47μm | F31: 卷 | G31: 8 | H31: =5+5+10+5+10 -> 35
E32: 1.5cm*长100m*厚35μm至47μm | F32: 卷 | G32: 1
D33: 青贮胶带 | E33: 15cm | F33: 卷 | G33: 9.5 | H33: =100+10+100+60+20+120 -> 410
A34: 9 | B34: 旗 | D34: 彩旗 大号 | E34: 150cm ×90cm | F34: 面 | G34: 3 | H34: 40
D35: 彩旗 中号 | E35: 120cm ×70cm | F35: 面 | G35: 2.5 | H35: 80
D36: 彩旗 小号 | E36: 60cm ×90cm | F36: 面 | G36: 1.8 | H36: =4 -> 4
D37: 国旗 3# | E37: 1920mm ×1280mm | F37: 面 | G37: 13 | H37: =1+6+5+4 -> 16
A38: 10 | B38: 垃圾袋 | C38: 鑫快乐家 | D38: 小号 | E38: 45cm×50cm*2丝(0.02mm) | F38: 卷 | G38: 2.5 | H38: =480+3+5+150 -> 638
D39: 背心式 10卷/包 | E39: 65cm×75cm*2丝(0.02mm) | F39: 卷 | G39: 2.85 | H39: =50+3+5+20+50+60+120+1000 -> 1308
D40: 加大号 | E40: 120cm*40cm*4丝(0.04mm) | F40: 卷 | G40: 25 | H40: =60+60+10+60+200+10+100 -> 500
A41: 11 | B41: 收纳箱 | C41: 鑫管家 | D41: 大号 | E41: 长50cm,宽40cm,高30cm | F41: 个 | G41: 38 | H41: =10+10+20 -> 40
D42: 中号 | E42: 长40cm,宽30cm,高20cm | F42: 个 | G42: 22 | H42: =20 -> 20
D43: 小号 | E43: 长30cm,宽20cm,高15cm | F43: 个 | G43: 16
A44: 12 | B44: 电池 | C44: 南孚 | D44: 5# | E44: 直径：约14.0mm,高度：约49.0mm | F44: 个 | G44: 2 | H44: =70+100+100+10+50+40+30+60+100 -> 560
D45: 7# | E45: 直径：约10.0mm,高度：约44.0mm | F45: 个 | G45: 2 | H45: =70+100+50+10+50+40+15+60+100 -> 495
A46: 13 | B46: 文件袋 | C46: 得力 | D46: 透明 | E46: 210mm x 297mm | F46: 个 | G46: 0.8 | H46: =5+50+10 -> 65
A47: 14 | B47: 牛皮纸档案袋 | D47: NO.2628 | E47: 宽24cm*长35cm*厚度350G | F47: 个 | G47: 0.8 | H47: =20+100+300+30+30 -> 480
A48: 15 | B48: 文件盒 | D48: A4 | E48: 长310mm×宽220mm*高5cm | F48: 个 | G48: 4.85 | H48: =20+5+20+10+20+50+20+30 -> 175
A49: 16 | B49: A4文件夹 | C49: 爱好 | D49: 宽23cm,高32cm,深0.5-1cm | F49: 个 | G49: 5 | H49: =5+5+10+10 -> 30
A50: 17 | B50: A4文件册 | D50: 210mm ×297mm | F50: 个 | G50: 23.5 | H50: =5+5 -> 10
A51: 18 | B51: 抽杆夹 | D51: A4 | E51: 尺寸：14mm加厚板面 承重：约60张纸 材质：透明PVC 特点：加厚板面确保文件稳固三角抽杆带有防滑条纹，提升使用便利性。 | F51: 个 | G51: 1 | H51: =20+30+20+30+20+20+20 -> 160
A52: 19 | B52: 固体胶 | D52: 20g/支 | E52: 缓干型 | F52: 个 | G52: 1.5 | H52: =144+120+24+130+100+100+20+48 -> 686
A53: 20 | B53: 快干印台 | C53: 得力 | D53: 得力9893 | E53: 长143mm*宽87mm*高5mm 红色 | F53: 个 | G53: 11 | H53: =5+6+5+5+10+1+6 -> 38
A54: 21 | B54: 原子印油 | D54: NO.9873 | E54: 材质：颜料、树脂有机溶剂 | F54: 瓶 | G54: 3 | H54: =15+1+20+5 -> 41
A55: 22 | B55: 扣取纸 | C55: 鑫祝思 | D55: 24*29mm | F55: 100张/本 | G55: 9.5 | H55: =5+10+20+2+50 -> 87
A56: 23 | B56: 回形针 | C56: 得力 | D56: 长3cm | F56: 100个/盒 | G56: 1.35 | H56: =30+10+12+25+20+10+3+5+6 -> 121
A57: 24 | B57: 复写纸 | C57: 申花 | D57: 80列 宽 241mm×长279mm | F57: 盒 | G57: 3.85 | H57: =2+10 -> 12
A58: 25 | B58: 塑封膜 | C58: 得力 | D58: 宽210*长297 mm*9丝 (0.09mm) | F58: 包 | G58: 35 | H58: =8+10 -> 18
A59: 26 | B59: 双面胶 | D59: 3cm | E59: -- | F59: 卷 | G59: 1.5 | H59: =12+20+10+12+20+2+20+10+30 -> 136
A60: 27 | B60: 计算机 | D60: NO.1512 | E60: -- | F60: 台 | G60: 23.5 | H60: =5+5 -> 10
A61: 28 | B61: 皮筋 | D61: -- | E61: -- | F61: 包 | G61: 2.5 | H61: 126
A62: 29 | B62: 磅单纸 | C62: 畅享 | D62: 46*23*24 | E62: -- | F62: 包 | G62: 7.5 | H62: =120+110+6+50+20+4+50+120+60 -> 540
A63: 30 | B63: 白板 | C63: 爱好 | D63: 30*45 | E63: 30*45 | F63: 块 | G63: 56 | H63: =5+5+2 -> 12
A64: 31 | B64: 防水软质透明垛 卡外套 | D64: A4 | E64: 210mm×297mm | F64: 张 | G64: 3 | H64: =5+1000 -> 1005
A65: 32 | B65: 凭证装订封套 | C65: 得力 | D65: 299×212mm | E65: 金蝶RM07B 299*212mm | F65: 套 | G65: 1 | H65: 2
A66: 33 | B66: 装钉机刀头 | D66: 规格φ6*50 | E66: 规格φ6*50 | F66: 个 | G66: 57.5 | H66: 2
A67: 34 | B67: 凭证打印皮 | D67: A4 | E67: 210mm×297mm | F67: 张 | G67: 1 | H67: 300
A68: 35 | B68: 板夹 | D68: A4 | E68: 320mm×215mm | F68: 个 | G68: 5 | H68: =20+18+10+20+5+3+15+5 -> 96
A69: 36 | B69: 磁性标签 | D69: 3轮 | E69: 磁性 7*10mm | F69: 个 | G69: 1.9 | H69: =200+180+30+100+50+30+100 -> 690
A70: 37 | B70: 大卷纸 | D70: 12卷/箱 | E70: 三层 | F70: 箱 | G70: 75 | H70: 14
A71: 38 | B71: 抽纸 | C71: 德澜 | D71: 3包/提 | E71: 180mm×175mm,厚2-3mm | F71: 包 | G71: 3.8 | H71: =108+200 -> 308
A72: 39 | B72: 抽纸 | C72: 心相印 | D72: 6盒/提 | E72: 161×190mm,三层，110抽，执 行标准：GB/T20808 | F72: 盒 | G72: 3.5 | H72: =36 -> 36
A73: 40 | B73: 一次性口杯 | D73: 250cc | E73: 9盎司，上口直径75mm,下口直 径53mm,高90mm | F73: 1500个/件 | G73: 83.5 | H73: =4+6+6+5+120+10+10+50 -> 211
A74: 41 | B74: 洗手液 | C74: 立白 | D74: 500g/瓶 | E74: - | F74: 瓶 | G74: 7.5 | H74: =20+120+150+288+15+24+10+30+100 -> 757
A75: 42 | B75: 杀虫气雾剂 | C75: 益康 | D75: 440g | E75: -- | F75: 瓶 | G75: 12.5 | H75: =12+12+10+20+10+5 -> 69
A76: 43 | B76: 垃圾桶 | D76: 塑料 | E76: 21cm x 30cm | F76: 个 | G76: 5.5 | H76: =3+5+10 -> 18
A77: 44 | B77: PVC桌垫 | D77: 2m*1m*2mm | E77: 2m*1m*2mm | F77: 卷 | G77: 57.5
A78: 45 | B78: 凭证打印皮 | D78: A3 | E78: 297mm×420mm | F78: 张 | G78: 1 | H78: =12 -> 12
